fUSD/lending_fUSD_20240123
["ID","MTS","AMOUNT","RATE_DAILY","PERIOD"]
[312570731,1706014250496,-294.66,0.0003709,2]
[312570732,1706014250506,-673.64,0.0003709,2]
[312570733,1706014250516,-294.39,0.0003709,2]
[312570734,1706014250526,-171.0123,0.00037148,10]
[312570735,1706014250536,-171.0123,0.00037248,10]
[312570736,1706014250546,-204.0,0.0003726,2]
[312570737,1706014250556,-178.454823,0.0003728,2]
[312570738,1706014250567,-267.744868,0.0003728,2]
[312570739,1706014250576,-326.753024,0.0003728,2]
[312570740,1706014250586,-162.536707,0.0003728,2]
[312570741,1706014250595,-502.969038,0.0003728,2]
[312570742,1706014250605,-619.100283,0.0003728,2]
[312570743,1706014250758,-162.536707,0.0003728,2]
[312570744,1706014250768,-189.170661,0.0003728,2]
[312570745,1706014250777,-154.142781,0.0003728,2]
[312570746,1706014250787,-1255.41139683,0.00037345,4]
[312570747,1706014250798,-980.56244468,0.00037345,4]
[312570748,1706014250809,-171.0123,0.00037348,10]
[312570749,1706014250824,-20000.0,0.000374,15]
[312570750,1706014250834,-157.950693,0.00037433,2]
[312570751,1706014250843,-171.0123,0.00037448,10]
[312570752,1706014250855,-150.0,0.00037505,2]
[312570753,1706014250864,-171.0123,0.00037548,10]
[312570754,1706014250873,-158.59134129,0.0003758,2]
[312570755,1706014250884,-957.95094527,0.00037609,10]
[312570756,1706014250894,-201.0123,0.00037648,10]
[312570757,1706014250905,-158.14,0.000377,3]
[312570758,1706014250914,-158.14,0.000377,3]
[312570759,1706014250924,-158.14,0.000377,3]
[312570760,1706014250933,-152.88,0.000377,3]
[312570761,1706014250943,-152.88,0.000377,3]
[312570762,1706014250953,-152.88,0.000377,3]
[312570763,1706014250963,-152.88,0.000377,3]
[312570764,1706014250973,-152.88,0.000377,3]
[312570765,1706014250983,-152.88,0.000377,3]
[312570766,1706014250993,-152.88,0.000377,3]
[312570767,1706014251003,-2527.34,0.000377,3]
[312570768,1706014251012,-2527.34,0.000377,3]
[312570769,1706014251021,-2527.34,0.000377,3]
[312570770,1706014251031,-2527.34,0.000377,3]
[312570771,1706014251040,-2527.34,0.000377,3]
[312570772,1706014251050,-2527.34,0.000377,3]
[312570773,1706014251059,-2527.34,0.000377,3]
[312570774,1706014251072,-2527.34,0.000377,3]
[312570775,1706014251081,-2527.34,0.000377,3]
[312570776,1706014251091,-2527.34,0.000377,3]
[312570777,1706014251100,-2527.34,0.000377,3]
[312570778,1706014251110,-2527.34,0.000377,3]
[312570779,1706014251120,-2527.34,0.000377,3]
[312570780,1706014251129,-2527.34,0.000377,3]
[312570781,1706014251139,-2527.34,0.000377,3]
[312570782,1706014251149,-2527.34,0.000377,3]
[312570783,1706014251158,-2527.34,0.000377,3]
[312570784,1706014251167,-2527.34,0.000377,3]
[312570785,1706014251178,-2527.34,0.000377,3]
[312570786,1706014251188,-2527.34,0.000377,3]
[312570787,1706014251197,-310.63897148,0.00037701,5]
[312570788,1706014251207,-385.27437372,0.00037717,4]
[312570789,1706014251216,-178.454823,0.0003774,2]
[312570790,1706014251226,-267.744868,0.0003774,2]
[312570791,1706014251235,-326.753024,0.0003774,2]
[312570792,1706014251244,-162.536707,0.0003774,2]
[312570793,1706014251253,-502.969038,0.0003774,2]
[312570794,1706014251263,-619.100283,0.0003774,2]
[312570795,1706014251272,-162.536707,0.0003774,2]
[312570796,1706014251282,-189.170661,0.0003774,2]
[312570797,1706014251292,-154.142781,0.0003774,2]
[312570798,1706014251301,-167.842745,0.0003774,2]
[312570799,1706014251311,-154.12274306,0.00037746,2]
[312570800,1706014251322,-201.0123,0.00037748,10]
[312570801,1706014251331,-319.35567071,0.00037779,30]
[312570802,1706014251340,-1104.79376073,0.00037795,2]
[312570803,1706014251350,-310.816159,0.000378,6]
[312570804,1706014251359,-150.0,0.000378,12]
[312570805,1706014251368,-200.69,0.00037808,2]
[312570806,1706014251378,-201.0123,0.00037848,10]
[312570807,1706014251387,-206.0,0.00037864,25]
[312570808,1706014251396,-500.0,0.0003787,2]
[312570809,1706014251406,-500.0,0.0003787,2]
[312570810,1706014251415,-3693.8533932,0.00037874,2]
[312570811,1706014251425,-46592.0729966,0.00037874,2]
[312570812,1706014251434,-2238.6995337,0.00037874,2]
[312570813,1706014251443,-2596.2481712,0.00037874,2]
[312570814,1706014251453,-150.57346219,0.00037883,2]
[312570815,1706014251463,-260.97999448,0.00037893,4]
[312570816,1706014251472,-43299.13063349,0.00037894,4]
[312570817,1706014251481,-144137.93726687,0.00037896,2]
[312570818,1706014251491,-319.35567071,0.00037899,30]
[312570819,1706014251500,-865.01,0.000379,7]
[312570820,1706014251510,-232.0,0.000379,2]
[312570821,1706014251520,-204.0,0.000379,2]
[312570822,1706014251529,-205.0,0.000379,2]
[312570823,1706014251540,-210.0,0.000379,2]
[312570824,1706014251550,-205.0,0.000379,2]
[312570825,1706014251560,-205.0,0.000379,2]
[312570826,1706014251570,-1968.265822,0.000379,8]
[312570827,1706014251580,-1973.376498,0.000379,8]
[312570828,1706014251593,-708.0123,0.000379,2]
[312570829,1706014251604,-200.0,0.000379,2]
[312570830,1706014251613,-150.0,0.000379,8]
[312570831,1706014251623,-306.077161,0.000379,8]
[312570832,1706014251633,-639301.63796,0.000379,3]
[312570833,1706014251643,-150.0,0.000379,9]
[312570834,1706014251653,-2627.9579,0.000379,2]
[312570835,1706014251662,-2055.0,0.000379,5]
[312570836,1706014251672,-201.0123,0.00037948,10]
[312570837,1706014251682,-381.56435836,0.00037999,15]
[312570838,1706014251692,-500.0,0.00037999,15]
[312570839,1706014251701,-500.0,0.00037999,15]
[312570840,1706014251711,-500.0,0.00037999,15]
[312570841,1706014251721,-500.0,0.00037999,15]
[312570842,1706014251730,-500.0,0.00037999,15]
[312570843,1706014251740,-276.92546265,0.00037999,15]
[312570844,1706014251750,-262.5260245,0.00037999,15]
[312570845,1706014251760,-500.0,0.00037999,15]
[312570846,1706014251769,-500.0,0.00037999,15]
[312570847,1706014251779,-500.0,0.00037999,15]
[312570848,1706014251788,-500.0,0.00037999,15]
[312570849,1706014251798,-500.0,0.00037999,15]
[312570850,1706014251807,-444.99454361,0.00037999,15]
[312570851,1706014251821,-500.0,0.00037999,15]
[312570852,1706014251830,-500.0,0.00037999,15]
[312570853,1706014251839,-468.67783541,0.00037999,15]
[312570854,1706014251850,-150.0,0.00037999,2]
[312570855,1706014251860,-500.97437734,0.00037999,2]
[312570856,1706014251869,-100000.0,0.00038,18]
[312570857,1706014251879,-84033.28825404,0.00038,5]
[312570858,1706014251889,-1005.5184,0.00038,2]
[312570859,1706014251898,-354.1965783,0.00038,30]
[312570860,1706014251907,-201.57702142,0.00038,2]
[312570861,1706014251917,-646.4,0.00038014,2]
[312570862,1706014251926,-1000.0,0.00038043,2]
[312570863,1706014251936,-157.950693,0.00038047,2]
[312570864,1706014251946,-201.0123,0.00038048,10]
[312570865,1706014251957,-157.48,0.0003805,2]
[312570866,1706014251967,-150.0,0.0003805,2]
[312570867,1706014251976,-150.0,0.0003805,2]
[312570868,1706014251986,-150.0,0.0003805,2]
[312570869,1706014251997,-654.91,0.00038079,2]
[312570870,1706014252006,-150.0,0.00038088,2]
[312570871,1706014252016,-19377.95487569,0.00038142,2]
[312570872,1706014252026,-201.0123,0.00038198,10]
[312570873,1706014252035,-178.454823,0.000382,2]
[312570874,1706014252046,-267.744868,0.000382,2]
[312570875,1706014252055,-326.753024,0.000382,2]
[312570876,1706014252064,-162.536707,0.000382,2]
[312570877,1706014252073,-502.969038,0.000382,2]
[312570878,1706014252083,-619.100283,0.000382,2]
[312570879,1706014252093,-162.536707,0.000382,2]
[312570880,1706014252103,-189.170661,0.000382,2]
[312570881,1706014252113,-154.142781,0.000382,2]
[312570882,1706014252123,-201.0123,0.00038248,10]
[312570883,1706014252132,-169.0,0.00038275,2]
[312570884,1706014252142,-7061.42778464,0.00038301,15]
[312570885,1706014252152,-209.51096978,0.00038338,10]
[312570886,1706014252162,-201.0123,0.00038348,10]
[312570887,1706014252171,-1412.13567183,0.00038356,30]
[312570888,1706014252181,-150.0,0.00038356,2]
[312570889,1706014252189,-592.83,0.00038356,2]
[312570890,1706014252200,-230.28018154,0.00038371,8]
[312570891,1706014252211,-150.0,0.000384,7]
[312570892,1706014252220,-865.01,0.000384,7]
[312570893,1706014252229,-5000.0,0.00038408,4]
[312570894,1706014252239,-151.3019421,0.0003842,30]
[312570895,1706014252249,-152.0,0.00038426,6]
[312570896,1706014252260,-201.0123,0.00038498,10]
[312570897,1706014252269,-197.6403383,0.00038499,2]
[312570898,1706014252280,-292.85015482,0.00038499,2]
[312570899,1706014252290,-855.95681505,0.000385,7]
[312570900,1706014252300,-561.67,0.000385,3]
[312570901,1706014252310,-201.0123,0.00038548,10]
[312570902,1706014252322,-957.95094527,0.00038636,12]
[312570903,1706014252333,-201.0123,0.00038648,10]
[312570904,1706014252345,-178.454823,0.0003866,2]
[312570905,1706014252355,-267.744868,0.0003866,2]
[312570906,1706014252365,-326.753024,0.0003866,2]
[312570907,1706014252376,-162.536707,0.0003866,2]
[312570908,1706014252385,-502.969038,0.0003866,2]
[312570909,1706014252395,-619.100283,0.0003866,2]
[312570910,1706014252404,-162.536707,0.0003866,2]
[312570911,1706014252413,-189.170661,0.0003866,2]
[312570912,1706014252422,-154.142781,0.0003866,2]
[312570913,1706014252430,-184.520411,0.0003866,2]
[312570914,1706014252440,-185.044435,0.0003866,2]
[312570915,1706014252449,-157.950693,0.0003866,2]
[312570916,1706014252459,-167.842745,0.0003866,2]
[312570917,1706014252468,-150.0,0.00038672,2]
[312570918,1706014252477,-11840.80529261,0.000387,4]
[312570919,1706014252487,-1006.40864302,0.00038737,30]
[312570920,1706014252499,-201.0123,0.00038798,10]
[312570921,1706014252519,-310.816159,0.000388,8]
[312570922,1706014252532,-201.0123,0.00038848,10]
[312570923,1706014252542,-18673.79369489,0.0003888,2]
[312570924,1706014252551,-18673.79369489,0.0003888,2]
[312570925,1706014252561,-18673.79369489,0.0003888,2]
[312570926,1706014252571,-18673.79369489,0.0003888,2]
[312570927,1706014252580,-865.01,0.000389,7]
[312570928,1706014252589,-150.0,0.000389,10]
[312570929,1706014252598,-560.06350454,0.0003897,2]
[312570930,1706014252607,-44267.8144517,0.00038973,2]
[312570931,1706014252616,-283.226632,0.0003898,2]
[312570932,1706014252626,-201.0123,0.00038998,10]
[312570933,1706014252635,-150.0,0.00038999,2]
[312570934,1706014252644,-319.35567071,0.00038999,30]
[312570935,1706014252653,-150.0,0.00038999,2]
[312570936,1706014252662,-100000.0,0.00039,19]
[312570937,1706014252671,-164.59640463,0.00039,40]
[312570938,1706014252680,-7431.8508231,0.00039,5]
[312570939,1706014252690,-217.55131359,0.00039,120]
[312570940,1706014252699,-634602.0,0.00039,2]
[312570941,1706014252709,-3000.0,0.00039,30]
[312570942,1706014252718,-240.79071988,0.00039,5]
[312570943,1706014252727,-155.0,0.00039,5]
[312570944,1706014252736,-9000.0,0.00039,9]
[312570945,1706014252745,-954.90124054,0.00039,5]
[312570946,1706014252754,-2050.9042525,0.00039,6]
[312570947,1706014252764,-170.09,0.00039,7]
[312570948,1706014252773,-197.98010933,0.00039,4]
[312570949,1706014252782,-976.43273417,0.00039,4]
[312570950,1706014252791,-8924.02518077,0.00039,7]
[312570951,1706014252801,-281553.17355989,0.00039,5]
[312570952,1706014252815,-1434.44457808,0.00039,2]
[312570953,1706014252824,-800.0,0.00039,3]
[312570954,1706014252833,-833.90300627,0.00039,2]
[312570955,1706014252842,-3000.0,0.00039,24]
[312570956,1706014252852,-3000.0,0.0003901,24]
[312570957,1706014252861,-5349.261884,0.0003902,24]
[312570958,1706014252870,-202.0123,0.00039048,10]
[312570959,1706014252879,-353.6,0.00039078,2]
[312570960,1706014252888,-150.0,0.00039117,4]
[312570961,1706014252898,-2134.573974,0.00039166,2]
[312570962,1706014252909,-2475.4924423,0.00039166,2]
[312570963,1706014252918,-5780.46,0.00039193,2]
[312570964,1706014252927,-202.0123,0.00039198,10]
[312570965,1706014252936,-300000.0,0.00039233,60]
[312570966,1706014252951,-168.40400612,0.00039242,11]
[312570967,1706014252965,-150.0,0.00039256,2]
[312570968,1706014252975,-583.0,0.0003926,2]
[312570969,1706014252984,-201.0123,0.00039298,10]
[312570970,1706014252994,-2030.4484143,0.00039311,2]
[312570971,1706014253004,-2354.7367134,0.00039311,2]
[312570972,1706014253014,-2978.9275569,0.00039316,2]
[312570973,1706014253023,-2264.0017206,0.00039316,2]
[312570974,1706014253032,-41943.5559068,0.00039316,2]
[312570975,1706014253042,-132368.35,0.00039333,30]
[312570976,1706014253051,-633.45835456,0.00039333,30]
[312570977,1706014253062,-248.0,0.00039333,120]
[312570978,1706014253072,-161.13002531,0.00039333,4]
[312570979,1706014253082,-150.0,0.00039333,120]
[312570980,1706014253091,-21991.80840679,0.00039333,30]
[312570981,1706014253101,-158.49652531,0.00039333,30]
[312570982,1706014253111,-158.2389082,0.00039333,30]
[312570983,1706014253120,-787.13611956,0.00039333,2]
[312570984,1706014253130,-353.04871913,0.00039333,30]
[312570985,1706014253140,-60032.89642496,0.00039333,30]
[312570986,1706014253149,-120695.95758963,0.00039333,30]
[312570987,1706014253159,-552806.47220845,0.00039333,30]
[312570988,1706014253168,-13196.41113464,0.00039333,30]
[312570989,1706014253177,-342368.67510649,0.00039333,30]
[312570990,1706014253187,-345281.02048633,0.00039333,30]
[312570991,1706014253196,-278.31612306,0.00039333,30]
[312570992,1706014253205,-90623.96050506,0.00039333,31]
[312570993,1706014253215,-183.28236147,0.00039333,120]
[312570994,1706014253224,-229.29256595,0.00039333,30]
[312570995,1706014253234,-43515.44444176,0.00039333,30]
[312570996,1706014253243,-1231.16605653,0.00039333,2]
[312570997,1706014253252,-8004.02059167,0.00039333,7]
[312570998,1706014253261,-2000.0,0.00039333,2]
[312570999,1706014253272,-2000.0,0.00039333,2]
[312571000,1706014253282,-2000.0,0.00039333,2]
[312571001,1706014253291,-2000.0,0.00039333,2]
[312571002,1706014253301,-2043.63,0.00039333,2]
[312571003,1706014253311,-540000.0,0.00039333,30]
[312571004,1706014253321,-3819.95307875,0.00039333,2]
[312571005,1706014253330,-16612.2179,0.00039333,7]
[312571006,1706014253340,-1224.77633931,0.00039333,2]
[312571007,1706014253349,-231.932109,0.00039333,3]
[312571008,1706014253358,-2237.89665869,0.00039338,2]
[312571009,1706014253368,-154.12274306,0.00039362,4]
[312571010,1706014253378,-150.0,0.00039366,2]
[312571011,1706014253388,-1104.79376073,0.00039374,2]
[312571012,1706014253398,-201.0123,0.00039398,10]
[312571013,1706014253407,-865.01,0.000394,7]
[312571014,1706014253417,-201.0123,0.00039498,10]
[312571015,1706014253426,-491.81972648,0.000395,4]
[312571016,1706014253435,-1000.0,0.00039538,2]
[312571017,1706014253445,-201.0123,0.00039548,10]
[312571018,1706014253455,-201.0123,0.00039648,10]
[312571019,1706014253464,-957.95094527,0.00039664,13]
[312571020,1706014253474,-500.0,0.000397,7]
[312571021,1706014253483,-23681.58,0.000397,4]
[312571022,1706014253492,-555.0123,0.00039748,10]
[312571023,1706014253502,-959.72754201,0.00039795,5]
[312571024,1706014253512,-310.816159,0.000398,9]
[312571025,1706014253522,-5000.0,0.00039836,6]
[312571026,1706014253531,-150.0,0.0003984,2]
[312571027,1706014253541,-555.0123,0.00039848,10]
[312571028,1706014253550,-350.00006257,0.000399,4]
[312571029,1706014253560,-865.01,0.000399,7]
[312571030,1706014253571,-150.0,0.000399,11]
[312571031,1706014253580,-3424.48121112,0.0003991,2]
[312571032,1706014253589,-171200.0,0.0003999,60]
[312571033,1706014253599,-100000.0,0.0004,30]
[312571034,1706014253609,-5000.0,0.0004,2]
[312571035,1706014253619,-301.17072719,0.0004,14]
[312571036,1706014253628,-879.35602367,0.0004,4]
[312571037,1706014253637,-554.29335016,0.0004,2]
[312571038,1706014253647,-365.99631825,0.0004,4]
[312571039,1706014253656,-168.87138139,0.0004,4]
[312571040,1706014253666,-161.84454933,0.0004,4]
[312571041,1706014253675,-126215.31786015,0.0004,30]
[312571042,1706014253685,-3000.0,0.0004,2]
[312571043,1706014253694,-1760.82842484,0.0004,17]
[312571044,1706014253704,-2000.0,0.0004,3]
[312571045,1706014253713,-408.37178193,0.0004,4]
[312571046,1706014253723,-1000.0,0.0004,2]
[312571047,1706014253732,-912.35171586,0.0004,2]
[312571048,1706014253741,-670.29523691,0.0004,4]
[312571049,1706014253750,-176.12291098,0.0004,2]
[312571050,1706014253760,-1719.30253916,0.0004,4]
[312571051,1706014253769,-2001.6194,0.0004,3]
[312571052,1706014253779,-1086.45864065,0.0004,10]
[312571053,1706014253789,-259.40892063,0.0004,4]
[312571054,1706014253798,-449.35450672,0.0004,4]
[312571055,1706014253809,-155.51485991,0.0004,2]
[312571056,1706014253822,-172.49456583,0.0004,4]
[312571057,1706014253832,-2000.0,0.0004,3]
[312571058,1706014253842,-1080.65734197,0.0004,7]
[312571059,1706014253853,-2000.0,0.0004,3]
[312571060,1706014253862,-3900.0,0.0004,2]
[312571061,1706014253872,-255.0,0.0004,12]
[312571062,1706014253882,-255.0,0.0004,12]
[312571063,1706014253894,-155.32031463,0.0004,3]
[312571064,1706014253905,-255.0,0.0004,12]
[312571065,1706014253915,-307.0,0.0004,30]
[312571066,1706014253924,-255.0,0.0004,12]
[312571067,1706014253934,-255.0,0.0004,12]
[312571068,1706014253944,-255.0,0.0004,12]
[312571069,1706014253954,-255.0,0.0004,12]
[312571070,1706014253964,-150.0,0.0004,15]
[312571071,1706014253974,-158.0,0.00040051,2]
[312571072,1706014253984,-28660.45801332,0.00040102,19]
[312571073,1706014253994,-21729.64785245,0.00040102,19]
[312571074,1706014254004,-20648.42920273,0.00040102,19]
[312571075,1706014254015,-23286.15031749,0.00040102,19]
[312571076,1706014254025,-21271.38953397,0.00040102,19]
[312571077,1706014254034,-28213.51586653,0.00040102,19]
[312571078,1706014254044,-555.0123,0.00040148,12]
[312571079,1706014254054,-555.0123,0.00040248,12]
[312571080,1706014254065,-654.91,0.00040343,2]
[312571081,1706014254075,-555.0123,0.00040348,12]
[312571082,1706014254085,-363.32,0.00040349,15]
[312571083,1706014254095,-204.0,0.0004036,2]
[312571084,1706014254107,-150.0,0.00040375,2]
[312571085,1706014254118,-199.31,0.00040377,2]
[312571086,1706014254130,-150.0,0.00040423,2]
[312571087,1706014254140,-555.0123,0.00040448,12]
[312571088,1706014254150,-865.01,0.000405,7]
[312571089,1706014254160,-230.28018154,0.00040514,9]
[312571090,1706014254170,-555.0123,0.00040548,12]
[312571091,1706014254180,-187.20216054,0.00040567,4]
[312571092,1706014254191,-155.0,0.00040572,4]
[312571093,1706014254201,-555.0123,0.00040648,12]
[312571094,1706014254212,-957.95094527,0.00040691,14]
[312571095,1706014254222,-583.0,0.00040733,2]
[312571096,1706014254232,-152.0,0.00040734,7]
[312571097,1706014254243,-555.0123,0.00040798,12]
[312571098,1706014254255,-310.816159,0.000408,11]
[312571099,1706014254265,-555.0123,0.00040848,12]
[312571100,1706014254275,-278.190189,0.000409,12]
[312571101,1706014254287,-555.0123,0.00040948,12]
[312571102,1706014254297,-1104.79376073,0.00040953,5]
[312571103,1706014254309,-154.12274306,0.00040977,10]
[312571104,1706014254321,-1000.4761,0.00040999,2]
[312571105,1706014254331,-100000.0,0.00041,31]
[312571106,1706014254342,-3463.22059972,0.00041,4]
[312571107,1706014254354,-865.01,0.00041,7]
[312571108,1706014254364,-850.0,0.00041,3]
[312571109,1706014254373,-307.0,0.00041,30]
[312571110,1706014254383,-1042.0,0.00041,2]
[312571111,1706014254393,-14902.0,0.00041,2]
[312571112,1706014254403,-153.361993,0.00041,16]
[312571113,1706014254413,-150.0,0.00041007,2]
[312571114,1706014254423,-1000.0,0.00041032,4]
[312571115,1706014254433,-555.0123,0.00041048,12]
[312571116,1706014254442,-536.23159343,0.00041095,2]
[312571117,1706014254452,-151.0,0.00041096,14]
[312571118,1706014254463,-151.0,0.00041096,14]
[312571119,1706014254473,-169.744086,0.00041096,14]
[312571120,1706014254484,-151.0,0.00041096,14]
[312571121,1706014254494,-151.0,0.00041096,14]
[312571122,1706014254504,-151.0,0.00041096,14]
[312571123,1706014254515,-151.0,0.00041096,14]
[312571124,1706014254526,-152.867376,0.00041096,14]
[312571125,1706014254535,-166.439237,0.00041096,14]
[312571126,1706014254545,-151.0,0.00041096,7]
[312571127,1706014254555,-151.0,0.00041096,7]
[312571128,1706014254565,-151.0,0.00041096,7]
[312571129,1706014254575,-151.0,0.00041096,14]
[312571130,1706014254584,-188.0,0.00041096,14]
[312571131,1706014254595,-160.664878,0.00041096,14]
[312571132,1706014254605,-160.664878,0.00041096,14]
[312571133,1706014254615,-160.664878,0.00041096,14]
[312571134,1706014254625,-160.664878,0.00041096,14]
[312571135,1706014254635,-160.664878,0.00041096,14]
[312571136,1706014254645,-160.664878,0.00041096,14]
[312571137,1706014254655,-160.664878,0.00041096,14]
[312571138,1706014254665,-160.664878,0.00041096,14]
[312571139,1706014254675,-160.664878,0.00041096,14]
[312571140,1706014254685,-160.664878,0.00041096,14]
[312571141,1706014254695,-151.0,0.00041096,14]
[312571142,1706014254705,-151.0,0.00041096,14]
[312571143,1706014254715,-151.0,0.00041096,14]
[312571144,1706014254726,-151.0,0.00041096,14]
[312571145,1706014254736,-151.0,0.00041096,14]
[312571146,1706014254746,-151.0,0.00041096,14]
[312571147,1706014254756,-151.0,0.00041096,14]
[312571148,1706014254766,-151.0,0.00041096,14]
[312571149,1706014254776,-151.0,0.00041096,14]
[312571150,1706014254787,-151.0,0.00041096,14]
[312571151,1706014254797,-151.0,0.00041096,14]
[312571152,1706014254813,-151.0,0.00041096,14]
[312571153,1706014254824,-151.0,0.00041096,14]
[312571154,1706014254835,-151.0,0.00041096,14]
[312571155,1706014254846,-151.0,0.00041096,14]
[312571156,1706014254857,-151.0,0.00041096,14]
[312571157,1706014254867,-151.0,0.00041096,14]
[312571158,1706014254877,-151.0,0.00041096,14]
[312571159,1706014254887,-151.0,0.00041096,14]
[312571160,1706014254899,-151.0,0.00041096,14]
[312571161,1706014254909,-151.0,0.00041096,14]
[312571162,1706014254919,-167.936216,0.00041096,14]
[312571163,1706014254929,-151.0,0.00041096,7]
[312571164,1706014254939,-158.5,0.00041096,7]
[312571165,1706014254950,-151.0,0.00041096,14]
[312571166,1706014254961,-151.0,0.00041096,14]
[312571167,1706014254972,-151.0,0.00041096,14]
[312571168,1706014254982,-151.0,0.00041096,14]
[312571169,1706014254992,-151.0,0.00041096,14]
[312571170,1706014255002,-151.0,0.00041096,14]
[312571171,1706014255012,-151.0,0.00041096,7]
[312571172,1706014255023,-151.0,0.00041096,7]
[312571173,1706014255033,-152.456711,0.00041096,7]
[312571174,1706014255043,-151.0,0.00041096,14]
[312571175,1706014255054,-151.0,0.00041096,14]
[312571176,1706014255064,-151.0,0.00041096,14]
[312571177,1706014255077,-151.0,0.00041096,14]
[312571178,1706014255088,-212.130064,0.00041096,14]
[312571179,1706014255097,-151.0,0.00041096,14]
[312571180,1706014255107,-151.0,0.00041096,14]
[312571181,1706014255117,-151.0,0.00041096,14]
[312571182,1706014255127,-151.0,0.00041096,14]
[312571183,1706014255136,-151.0,0.00041096,14]
[312571184,1706014255146,-151.0,0.00041096,14]
[312571185,1706014255157,-151.0,0.00041096,14]
[312571186,1706014255167,-151.0,0.00041096,14]
[312571187,1706014255177,-151.0,0.00041096,14]
[312571188,1706014255188,-151.0,0.00041096,14]
[312571189,1706014255198,-151.0,0.00041096,14]
[312571190,1706014255209,-205.689304,0.00041096,14]
[312571191,1706014255219,-151.0,0.00041096,14]
[312571192,1706014255229,-151.0,0.00041096,14]
[312571193,1706014255239,-151.0,0.00041096,14]
[312571194,1706014255249,-151.0,0.00041096,14]
[312571195,1706014255259,-151.0,0.00041096,14]
[312571196,1706014255268,-151.0,0.00041096,14]
[312571197,1706014255278,-151.0,0.00041096,14]
[312571198,1706014255289,-151.0,0.00041096,14]
[312571199,1706014255299,-168.007081,0.00041096,14]
[312571200,1706014255310,-347.01161,0.00041096,14]
[312571201,1706014255323,-347.01161,0.00041096,14]
[312571202,1706014255333,-347.01161,0.00041096,14]
[312571203,1706014255343,-347.01161,0.00041096,14]
[312571204,1706014255353,-347.01161,0.00041096,14]
[312571205,1706014255363,-347.01161,0.00041096,14]
[312571206,1706014255372,-347.01161,0.00041096,14]
[312571207,1706014255382,-347.01161,0.00041096,14]
[312571208,1706014255392,-347.01161,0.00041096,14]
[312571209,1706014255402,-347.01161,0.00041096,14]
[312571210,1706014255412,-347.01161,0.00041096,14]
[312571211,1706014255421,-347.01161,0.00041096,14]
[312571212,1706014255431,-347.01161,0.00041096,14]
[312571213,1706014255442,-347.01161,0.00041096,14]
[312571214,1706014255452,-151.0,0.00041096,14]
[312571215,1706014255461,-151.0,0.00041096,14]
[312571216,1706014255471,-151.0,0.00041096,14]
[312571217,1706014255481,-151.0,0.00041096,14]
[312571218,1706014255490,-160.633762,0.00041096,14]
[312571219,1706014255500,-151.0,0.00041096,14]
[312571220,1706014255510,-151.0,0.00041096,14]
[312571221,1706014255520,-151.0,0.00041096,14]
[312571222,1706014255530,-151.0,0.00041096,14]
[312571223,1706014255540,-156.919386,0.00041096,14]
[312571224,1706014255550,-151.0,0.00041096,14]
[312571225,1706014255560,-154.521947,0.00041096,14]
[312571226,1706014255572,-177.793104,0.00041096,14]
[312571227,1706014255581,-151.0,0.00041096,14]
[312571228,1706014255591,-151.0,0.00041096,14]
[312571229,1706014255600,-151.0,0.00041096,14]
[312571230,1706014255611,-151.0,0.00041096,14]